bitfinex/quotes_SOLUSD_20240922
["timestamp","ask_amount","ask_price","bid_price","bid_amount"]
[1727042352054,1.52996,142.46,142.43,7.0208]
[1727042352253,22.36453412,142.47,142.44,7.0204]
[1727042352567,22.36453412,142.47,142.46,7.0195]
[1727042352768,22.36453412,142.47,142.45,7.0198]
[1727042353273,1.52996,142.49,142.45,7.0198]
[1727042353661,1.52996,142.49,142.44,17.5509]
[1727042353860,1.52996,142.49,142.44,24.5711]
[1727042354061,1.52996,142.49,142.44,17.5509]
[1727042354257,1.52996,142.49,142.44,24.5713]
[1727042355578,1.52996,142.49,142.45,7.0198]
[1727042356372,1.52996,142.49,142.46,7.0194]
[1727042356578,50.0,142.52,142.44,34.1839]
[1727042356770,50.0,142.52,142.46,7.0193]
[1727042356965,1.52996,142.53,142.49,7.0178]
[1727042357289,8.3440515,142.52,142.49,7.0178]
[1727042357464,1.52996,142.53,142.49,7.0178]
[1727042357657,8.34345185,142.52,142.49,7.0178]
[1727042358059,8.34345185,142.52,142.49,7.34239794]
[1727042358379,50.0,142.56,142.49,7.34239794]
[1727042358582,9.87478599,142.55,142.5,7.0173]
[1727042358879,8.34482599,142.54,142.49,0.32459794]
[1727042359078,1.52996,142.53,142.49,0.32459794]
[1727042359266,7.35011222,142.53,142.49,0.32459794]
[1727042359784,1.52996,142.53,142.49,0.32459794]
[1727042360080,1.52996,142.52,142.49,0.32459794]
[1727042360278,1.78094,142.55,142.49,7.34259794]
[1727042360478,8.34266779,142.54,142.49,7.34259794]
[1727042360683,9.87262779,142.53,142.49,7.34259794]
[1727042360988,1.52996,142.53,142.49,7.34259794]
[1727042361173,7.34891975,142.53,142.49,7.34259794]
[1727042361368,5.81905216,142.52,142.5,7.0174]
[1727042361572,5.81905216,142.52,142.51,7.017]
[1727042361871,134.52642478,142.6,142.53,7.0158]
[1727042362068,92.87134175,142.59,142.53,7.06185994]
[1727042362283,8.34491697,142.58,142.53,7.06185994]
[1727042362498,8.34491697,142.57,142.54,7.0155]
[1727042362667,84.52642478,142.59,142.54,7.0155]
[1727042362959,8.34365074,142.58,142.54,7.0155]
[1727042363164,84.52642478,142.59,142.54,7.0155]
[1727042363392,8.34184125,142.58,142.54,7.0155]
[1727042363586,84.52642478,142.59,142.54,7.0155]
[1727042363775,1.52996,142.58,142.54,7.0155]
[1727042364084,50.0,142.57,142.53,0.04605994]
[1727042364270,1.52996,142.56,142.53,0.04605994]
[1727042365276,1.52996,142.58,142.53,0.04605994]
[1727042366179,7.0148,142.56,142.53,0.04605994]
[1727042366491,1.52996,142.55,142.53,0.04605994]
[1727042367084,1.52996,142.56,142.53,0.04605994]
[1727042368293,7.0141,142.57,142.53,0.04605994]
[1727042370391,0.25098,142.59,142.53,0.04605994]
[1727042370965,1.52996,142.58,142.53,0.04605994]
[1727042371290,7.0139,142.58,142.53,7.06165994]
[1727042371669,7.0131,142.59,142.55,7.0149]
[1727042372470,91.53902478,142.6,142.55,7.0149]
[1727042372664,84.52642478,142.6,142.54,17.5383]
[1727042372871,50.0,142.5,142.49,0.24573314]
[1727042373072,74.5613,142.5,142.49,0.24573314]
[1727042373378,7.0201,142.45,142.43,0.3710732]
[1727042373874,1.52996,142.48,142.43,0.3710732]
[1727042374074,7.0195,142.46,142.43,0.3710732]
[1727042374300,7.0201,142.45,142.43,0.3710732]
[1727042374796,8.55036,142.44,142.43,0.3710732]
[1727042375274,7.0204,142.44,142.43,0.3710732]
[1727042375684,1.52996,142.46,142.43,0.3710732]
[1727042375876,0.12549,142.48,142.43,0.3710732]
[1727042376087,7.0204,142.44,142.43,0.3710732]
[1727042376479,7.02,142.45,142.43,0.3710732]
[1727042377994,8.55036,142.44,142.43,0.3710732]
[1727042378192,7.0204,142.44,142.43,0.3710732]
[1727042381785,57.27138,142.44,142.43,0.3710732]
[1727042384483,81.048264,142.44,142.43,7.32e-05]
[1727042384985,81.048264,142.44,142.36,0.3710732]
[1727042384986,7.0239,142.37,142.36,0.3710732]
[1727042385286,76.23915,142.37,142.36,7.32e-05]
[1727042387286,76.23915,142.37,142.26,13.3034226]
[1727042387287,57.0298,142.25,142.24,4.87987438]
[1727042387516,57.0298,142.25,142.17,0.5433275]
[1727042387517,50.0,142.18,142.17,0.5433275]
[1727042387808,57.0333,142.18,142.17,1.298665]
[1727042388312,58.56326,142.18,142.17,1.298665]
[1727042388478,58.56326,142.18,142.08,0.5433275]
[1727042388479,50.0,142.1,142.08,0.5433275]
[1727042388682,50.0,142.1,142.09,1.1]
[1727042388683,73.902374,142.1,142.09,1.1]
[1727042388892,73.902374,142.1,142.09,1.1934034]
[1727042389198,51.65545,142.1,142.09,1.1934034]
[1727042389397,74.027864,142.1,142.09,1.1934034]
[1727042389720,74.027864,142.1,141.99,16.2491]
[1727042389721,0.12549,142.02,142.0,54.050832]
[1727042390416,0.12549,142.03,142.0,54.050832]
[1727042390601,43.902374,142.1,142.0,54.050832]
[1727042390602,0.25098,142.01,142.0,54.050832]
[1727042390790,50.0,142.02,142.0,54.050832]
[1727042390994,0.25098,142.03,142.0,54.050832]
[1727042391318,0.25098,142.05,142.0,54.050832]
[1727042391519,51.52996,142.04,142.0,54.050832]
[1727042391694,0.12549,142.01,142.0,54.050832]
[1727042391897,0.25098,142.01,142.0,54.050832]
[1727042392319,0.12549,142.05,142.0,54.050832]
[1727042392497,50.0,142.09,142.03,7.0406]
[1727042393219,50.0,142.09,142.04,7.0399]
[1727042393515,50.0,142.07,142.02,7.041]
[1727042394096,1.52996,142.06,142.02,7.041]
[1727042394312,1.52996,142.06,142.01,7.0414]
[1727042394513,0.12549,142.05,142.01,7.0416]
[1727042394712,50.0,142.09,142.02,7.0411]
[1727042394916,0.25098,142.08,142.02,7.0411]
[1727042395310,50.0,142.09,142.0,71.655232]
[1727042395311,1.52996,142.07,142.0,71.655232]
[1727042395705,1.52996,142.07,142.02,7.0408]
[1727042396801,51.52996,142.07,142.02,7.0408]
[1727042397222,1.52996,142.06,142.0,71.655232]
[1727042397408,50.0,142.09,142.0,71.655232]
[1727042397611,50.0,142.11,142.03,17.6014]
[1727042398002,7.37841263,142.14,142.0,54.050832]
[1727042398003,1.52996,142.1,142.08,7.0379]
[1727042398204,73.84986156,142.23,142.06,17.5976]
[1727042398205,1.52996,142.12,142.06,17.5976]
[1727042398403,50.0,142.15,142.04,37.73994373]
[1727042398404,50.0,142.15,142.1,17.5932]
[1727042398619,50.0,142.17,142.13,7.0355]
[1727042398817,50.0,142.17,142.13,17.5886]
[1727042399125,7.37841263,142.21,142.13,17.5886]
[1727042399126,50.0,142.19,142.13,17.5886]
[1727042400524,50.0,142.21,142.14,7.0351]
[1727042400725,50.0,142.18,142.12,40.9121]
[1727042400921,20.89299974,142.19,142.13,7.0357]
[1727042401108,20.89299974,142.19,142.12,33.8763]
[1727042401109,1.52996,142.17,142.15,7.0348]
[1727042401310,1.52996,142.17,142.12,33.8763]
[1727042401829,50.0,142.18,142.13,7.0357]
[1727042402331,1.52996,142.17,142.14,7.0352]
[1727042402499,50.0,142.24,142.18,7.0333]
[1727042402704,1.52996,142.23,142.22,7.0313]
[1727042402907,1.52996,142.23,142.21,7.0318]
[1727042403207,1.52996,142.23,142.18,17.583]
[1727042403406,90.69488738,142.25,142.21,17.5794]
[1727042403407,1.52996,142.24,142.21,17.5794]
[1727042403822,1.52996,142.24,142.23,7.0308]
[1727042404224,90.69488738,142.25,142.23,7.0308]
[1727042404619,1.52996,142.24,142.21,17.5794]
[1727042404821,1.52996,142.24,142.16,35.1692]
[1727042404822,7.74325858,142.24,142.17,17.5836]
[1727042405033,7.74325858,142.24,142.12,51.9457]
[1727042405034,50.0,142.22,142.15,7.0347]
[1727042405232,10.15656174,142.23,142.12,16.7662]
[1727042405233,50.0,142.19,142.12,16.7662]
[1727042405440,0.12549,142.13,142.12,0.4802]
[1727042405608,0.25098,142.13,142.12,0.4802]
[1727042405812,1.52996,142.13,142.12,0.4802]
[1727042406311,1.78094,142.13,142.12,0.4802]
[1727042406617,1.78094,142.13,142.04,17.6]
[1727042406618,0.25098,142.12,142.05,7.0397]
[1727042406825,1.52996,142.11,142.05,7.0397]
[1727042407032,0.25098,142.12,142.07,17.5967]
[1727042407033,1.52996,142.12,142.07,17.5967]
[1727042407332,50.0,142.18,142.05,72.93664373]
[1727042407513,7.0325,142.2,142.05,72.93664373]
[1727042407514,1.52996,142.17,142.13,17.5892]
[1727042407709,3.72976,142.21,142.13,17.5892]
[1727042407710,7.0323,142.21,142.13,17.5892]
[1727042408008,1.52996,142.23,142.19,7.0327]
[1727042408214,50.0933384,142.27,142.19,17.582]
[1727042408215,1.52996,142.24,142.19,17.582]
[1727042408410,0.0933384,142.27,142.17,37.73994373]
[1727042408608,0.0933384,142.27,142.24,7.0299]
[1727042408826,0.0933384,142.27,142.13,35.1766]
[1727042408827,50.0,142.24,142.13,16.4596]
[1727042409129,1.52996,142.23,142.14,23.776884]
[1727042409333,7.0304,142.24,142.18,7.0328]
[1727042409534,1.52996,142.25,142.17,17.5841]
[1727042409733,8.55986,142.25,142.17,17.5841]
[1727042409948,1.52996,142.25,142.2,7.0323]
[1727042410113,0.0933384,142.27,142.2,17.58]
[1727042410114,8.6521984,142.27,142.2,17.58]
[1727042410454,7.0295,142.26,142.2,17.58]
[1727042410734,6.05946,142.26,142.2,17.58]
[1727042410930,7.0299,142.25,142.2,17.58]
[1727042411111,7.0299,142.25,142.18,7.0332]
[1727042411313,50.0,142.26,142.16,17.5849]
[1727042411635,50.0,142.26,142.16,24.6191]
[1727042411636,7.0309,142.23,142.16,24.6191]
[1727042412013,7.0309,142.23,142.17,7.0337]
[1727042412326,0.12549,142.22,142.13,16.4596]
[1727042412649,7.0339,142.17,142.13,16.4596]
[1727042412939,7.0333,142.18,142.13,16.4596]
[1727042413328,0.12549,142.21,142.13,16.4596]
[1727042413329,0.25098,142.21,142.13,16.4596]
[1727042413824,0.12549,142.21,142.13,16.4596]
[1727042414024,0.25098,142.23,142.15,7.0346]
[1727042414237,7.0308,142.23,142.14,17.5879]
[1727042414439,7.0308,142.23,142.17,7.0337]
[1727042414640,67.5742,142.26,142.19,7.0328]
[1727042414641,7.0298,142.25,142.19,7.0328]
[1727042415139,7.0304,142.24,142.19,7.0328]
[1727042415342,7.0304,142.24,142.18,7.0333]
[1727042416037,7.0293,142.26,142.2,7.0323]
[1727042416334,7.0303,142.25,142.2,17.5804]
[1727042417118,57.1223384,142.27,142.2,17.5804]
[1727042417439,7.0298,142.26,142.2,17.5804]
[1727042417634,7.0299,142.25,142.2,17.5804]
[1727042418147,0.0933384,142.27,142.2,17.5804]
[1727042418510,0.0933384,142.27,142.22,7.0308]
[1727042418745,0.0933384,142.27,142.23,17.5766]
[1727042419042,0.0933384,142.27,142.25,7.0298]
[1727042419236,0.0933384,142.27,142.22,37.73994373]
[1727042419434,0.0933384,142.27,142.23,6.2079]
[1727042420536,7.1224384,142.27,142.23,6.2079]
[1727042421032,0.0933384,142.27,142.23,6.2079]
[1727042421239,0.0933384,142.27,142.23,13.2386]
[1727042421430,0.0933384,142.27,142.24,7.0303]
[1727042422641,0.0933384,142.27,142.25,7.0295]
[1727042422944,0.0933384,142.27,142.23,6.2079]
[1727042423249,0.0933384,142.27,142.24,7.0299]
[1727042423412,0.0933384,142.27,142.23,23.7841]
[1727042424228,0.0933384,142.27,142.26,7.0293]
[1727042424430,98.31593468,142.31,142.28,24.5981]
[1727042424431,0.5941473,142.31,142.28,24.5981]
[1727042424729,0.5941473,142.31,142.29,7.0278]
[1727042424937,0.5941473,142.31,142.3,7.0274]
[1727042425525,0.0933384,142.35,142.3,37.73994373]
[1727042425722,0.0933384,142.35,142.32,7.0259]
[1727042426246,0.0933384,142.35,142.34,7.0254]
[1727042426928,0.0933384,142.35,142.32,24.5907]
[1727042427554,0.0933384,142.35,142.33,7.0257]
[1727042428530,0.0933384,142.35,142.34,7.0254]
[1727042428724,0.565969,142.39,142.34,44.76534373]
[1727042428922,0.565969,142.39,142.37,37.73994373]
[1727042429543,0.565969,142.39,142.38,7.0234]
[1727042429962,0.0933384,142.44,142.39,17.5567]
[1727042430129,0.0933384,142.44,142.43,7.0209]
[1727042432037,0.565969,142.48,142.47,7.019]
[1727042432252,0.565969,142.48,142.47,44.75894373]
[1727042434343,0.0933384,142.53,142.49,17.5449]
[1727042434553,0.0933384,142.53,142.52,44.75644373]
[1727042434732,0.0933384,142.53,142.52,68.53332773]
[1727042435635,0.0933384,142.62,142.55,7.015]
[1727042435934,0.0933384,142.62,142.52,37.73994373]
[1727042435935,7.0141,142.57,142.52,37.73994373]
[1727042436129,50.0933384,142.62,142.52,37.73994373]
[1727042436130,7.0126,142.61,142.54,7.0155]
[1727042436327,7.0126,142.6,142.55,7.015]
[1727042436535,7.0131,142.59,142.53,24.5552]
[1727042436730,7.0137,142.58,142.53,17.5396]
[1727042436926,50.0933384,142.62,142.5,6.1764]
[1727042436927,7.0155,142.55,142.5,6.1764]
[1727042437143,0.0933384,142.62,142.48,22.5058]
[1727042437144,50.0,142.57,142.48,22.5058]
[1727042437351,7.016,142.53,142.48,15.4874]
[1727042437629,7.0169,142.52,142.48,15.4874]
[1727042437829,7.016,142.53,142.48,15.4874]
[1727042438031,7.016,142.53,142.48,22.5057]
[1727042438253,50.0,142.57,142.48,22.5057]
[1727042438254,7.0166,142.52,142.48,15.4874]
[1727042438437,35.0648,142.6,142.44,6.1764]
[1727042438438,67.78898,142.55,142.44,6.1764]
[1727042438753,17.66689,142.52,142.44,6.1764]
[1727042438952,7.0195,142.46,142.41,15.4874]
[1727042439155,0.12549,142.55,142.38,6.1764]
[1727042439156,7.021,142.43,142.38,6.1764]
[1727042439544,7.0222,142.41,142.35,33.0487]
[1727042439847,7.0215,142.42,142.36,7.0243]
[1727042440446,0.25098,142.46,142.37,7.0238]
[1727042440647,7.0204,142.45,142.38,7.0234]
[1727042440851,7.02,142.45,142.39,7.0229]
[1727042441038,0.12549,142.48,142.4,7.0224]
[1727042441234,0.12549,142.5,142.41,7.0219]
[1727042441440,0.25098,142.5,142.42,7.0214]
[1727042441635,0.12549,142.5,142.42,7.0214]
[1727042442049,7.0187,142.48,142.42,7.0214]
[1727042442761,7.14329,142.5,142.44,7.0203]
[1727042442942,50.12549,142.51,142.41,17.5544]
[1727042443261,7.0165,142.52,142.46,7.0192]
[1727042443433,7.0165,142.52,142.45,17.5495]
[1727042443434,50.0,142.55,142.45,17.5495]
[1727042443957,0.565969,142.56,142.48,17.5461]
[1727042444155,7.580569,142.56,142.48,17.5461]
[1727042444660,0.565969,142.56,142.48,17.5461]
[1727042444849,0.565969,142.56,142.41,58.885884]
[1727042444850,50.0,142.48,142.32,35.1308]
[1727042445083,35.0873,142.51,142.32,35.1308]
[1727042445084,50.0,142.45,142.36,17.5601]
[1727042445559,7.021,142.43,142.37,7.0236]
[1727042445765,7.021,142.43,142.36,17.5601]
[1727042445933,7.0203,142.45,142.38,7.0232]
[1727042446339,7.0205,142.44,142.38,7.0232]
[1727042446670,0.25098,142.46,142.31,37.83328213]
[1727042446965,0.12549,142.41,142.31,0.0933384]
[1727042447161,7.0248,142.36,142.31,0.0933384]
[1727042447461,7.0249,142.35,142.31,0.0933384]
[1727042448650,50.0,142.39,142.31,0.0933384]
[1727042448966,0.25098,142.38,142.31,0.0933384]
[1727042449551,7.0259,142.33,142.31,0.0933384]
[1727042449753,0.25098,142.38,142.31,0.0933384]
[1727042450342,7.0247,142.36,142.31,0.0933384]
[1727042450747,7.0239,142.37,142.31,0.0933384]
[1727042451262,67.5555,142.41,142.31,0.0933384]
[1727042451447,0.12549,142.36,142.31,0.0933384]
[1727042451766,17.5588,142.38,142.31,0.0933384]
[1727042451969,0.25098,142.36,142.31,0.0933384]
[1727042452263,7.0264,142.32,142.31,0.0933384]
[1727042454069,7.0259,142.33,142.31,0.0933384]
[1727042454450,7.0255,142.34,142.31,0.0933384]
[1727042454665,7.0249,142.35,142.31,0.0933384]
[1727042455765,67.5538,142.42,142.31,0.0933384]
[1727042455950,7.0229,142.39,142.34,7.0253]
[1727042456468,7.0225,142.4,142.35,7.0249]
[1727042456971,7.0211,142.43,142.38,7.023]
[1727042457147,7.0215,142.42,142.37,7.0239]
[1727042457469,50.0,142.46,142.38,7.023]
[1727042458452,50.0,142.46,142.37,7.0238]
[1727042458453,7.0215,142.42,142.37,7.0238]
[1727042458657,50.25098,142.38,142.37,7.0238]
[1727042458841,7.0215,142.42,142.37,7.0238]
[1727042459858,0.12549,142.41,142.37,7.0238]
[1727042460264,7.0215,142.42,142.37,7.0238]
[1727042461151,50.0,142.47,142.38,7.0234]
[1727042461152,7.021,142.43,142.38,7.0234]
[1727042461443,57.0191,142.47,142.4,17.5554]
[1727042461644,7.019,142.48,142.42,7.0214]
[1727042461875,50.0,142.49,142.4,24.5774]
[1727042461876,7.0199,142.46,142.4,24.5774]
[1727042462258,7.019,142.47,142.41,7.0219]
[1727042462462,7.019,142.47,142.4,17.5554]
[1727042462463,7.0185,142.48,142.42,7.0214]
[1727042462645,7.0185,142.48,142.4,17.5554]
[1727042462646,7.0185,142.48,142.43,7.0209]
[1727042462970,7.0185,142.48,142.42,7.0214]
[1727042463557,50.0,142.51,142.4,23.9708]
[1727042463558,7.0196,142.46,142.4,30.9928]
[1727042463770,0.25098,142.48,142.4,23.9708]
[1727042464473,7.0225,142.4,142.34,29.9271]
[1727042464678,7.0236,142.38,142.34,22.902]
[1727042464876,7.0224,142.41,142.34,22.902]
[1727042465054,7.0225,142.4,142.35,7.0247]
[1727042465252,0.12549,142.42,142.34,22.902]
[1727042465556,7.0249,142.35,142.34,16.4866]
[1727042466076,7.026,142.33,142.31,0.0933384]
[1727042466257,7.0254,142.34,142.31,0.0933384]
[1727042467167,7.0264,142.32,142.31,0.0933384]
[1727042467376,7.0263,142.33,142.31,0.0933384]
[1727042467679,7.0264,142.32,142.31,0.0933384]
[1727042468578,37.27738,142.32,142.31,0.0933384]
[1727042468885,24.84338,142.32,142.31,0.0933384]
[1727042469968,7.27738,142.32,142.31,0.0933384]
[1727042470167,7.0264,142.32,142.31,0.0933384]
[1727042470482,97.83077738,142.34,142.31,0.0933384]
[1727042470679,97.70528738,142.34,142.31,0.0933384]
[1727042472288,7.0264,142.32,142.31,0.0933384]
[1727042472865,90.67988738,142.34,142.31,7.1199384]
[1727042473186,90.67988738,142.34,142.31,0.0933384]
[1727042474678,7.026,142.33,142.31,0.0933384]
[1727042474881,7.0264,142.32,142.31,0.0933384]
[1727042475188,7.15189,142.32,142.31,0.0933384]
[1727042475567,7.0264,142.32,142.31,0.0933384]
[1727042475962,7.27738,142.32,142.31,0.0933384]
[1727042477258,27.27738,142.32,142.31,0.0933384]
[1727042478596,7.27978,142.27,142.26,6.9e-05]
[1727042478891,7.27978,142.27,142.22,0.0933384]
[1727042478892,74.85888,142.23,142.22,0.0933384]
[1727042479191,57.28178,142.23,142.22,0.0933384]
[1727042480580,7.15629,142.23,142.22,0.0933384]
[1727042480978,0.12549,142.23,142.22,0.0933384]
[1727042481181,7.15629,142.23,142.22,0.0933384]
[1727042481376,0.12549,142.23,142.22,0.0933384]
[1727042481578,57.28178,142.23,142.22,0.0933384]
[1727042483101,7.0294,142.26,142.22,0.0933384]
[1727042483275,50.0,142.29,142.22,0.0933384]
[1727042483588,50.0,142.32,142.24,17.5758]
[1727042484474,7.0278,142.3,142.24,24.6061]
[1727042484880,50.0,142.32,142.24,24.6061]
[1727042484881,7.0284,142.28,142.24,17.5758]
[1727042485092,7.0284,142.28,142.22,7.1245384]
[1727042485392,7.029,142.27,142.22,0.0933384]
[1727042485603,50.0,142.28,142.22,0.0933384]
[1727042485771,0.12549,142.27,142.22,0.0933384]
[1727042485970,7.0304,142.24,142.22,0.0933384]
[1727042486892,7.0299,142.25,142.22,0.0933384]
[1727042487579,7.0294,142.26,142.22,0.0933384]
[1727042487889,7.0306,142.24,142.22,0.0933384]
[1727042488197,7.0298,142.26,142.22,0.0933384]
[1727042489595,7.0308,142.23,142.22,0.0933384]
[1727042489979,7.15629,142.23,142.22,0.0933384]
[1727042490680,0.12549,142.23,142.22,0.0933384]
[1727042490869,7.15629,142.23,142.22,0.0933384]
[1727042491581,7.28178,142.23,142.22,0.0933384]
[1727042493606,7.28178,142.23,142.17,0.565969]
[1727042493607,74.6166,142.18,142.17,0.565969]
[1727042493803,74.86758,142.18,142.17,0.565969]
[1727042494408,35.1607,142.21,142.13,3.84e-05]
[1727042494409,57.28628,142.14,142.13,3.84e-05]
[1727042494985,57.28628,142.14,142.1,0.5039464]
[1727042494986,57.28778,142.11,142.1,0.5039464]
[1727042496301,57.16319,142.09,142.08,0.0620226]
[1727042496603,57.16319,142.09,142.08,0.3791272]
[1727042496604,57.28868,142.09,142.08,0.3791272]
[1727042498008,50.12549,142.09,142.08,0.3791272]
[1727042498302,50.0,142.13,142.08,0.3791272]
[1727042498479,7.0355,142.14,142.08,25.0120272]
[1727042498684,50.0,142.15,142.08,25.0120272]
[1727042498685,50.0,142.15,142.08,0.3791272]
[1727042499084,7.0358,142.13,142.08,0.3791272]
[1727042499407,50.0,142.13,142.05,0.4097965]
[1727042499610,50.0,142.15,142.05,24.1866805]
[1727042499908,50.0,142.17,142.07,17.5966]
[1727042500094,7.0359,142.13,142.07,17.5966]
[1727042500698,7.0379,142.09,142.05,24.1866805]
[1727042500912,50.0,142.12,142.05,0.4097965]
[1727042501416,0.25098,142.11,142.05,0.4097965]
[1727042502002,50.0,142.1,142.05,0.4097965]
[1727042502314,7.0392,142.06,142.05,0.4097965]
[1727042502702,7.29018,142.06,142.05,0.4097965]
[1727042503719,27.29018,142.06,142.05,0.4097965]
[1727042503912,27.29018,142.06,142.0,53.5750639]
[1727042503913,7.16719,142.01,142.0,53.5750639]
[1727042504108,7.29268,142.01,142.0,53.5750639]
[1727042504797,27.29268,142.01,142.0,53.5750639]
[1727042504997,7.29268,142.01,142.0,53.5750639]
[1727042505240,50.0,142.02,142.0,53.5750639]
[1727042505395,0.25098,142.01,142.0,53.5750639]
[1727042506026,20.25098,142.01,142.0,53.5750639]
[1727042506319,0.25098,142.01,142.0,53.5750639]
[1727042508199,57.0415,142.02,142.0,53.5750639]
[1727042508417,50.0,142.02,142.0,53.5750639]
[1727042508617,50.0,142.04,142.0,53.5750639]
[1727042508821,11.38853949,142.05,142.02,7.0412]
[1727042509014,11.38853949,142.05,142.0,53.5750639]
[1727042509015,50.0,142.08,142.01,32.6294]
[1727042509212,57.0385,142.08,142.01,32.6294]
[1727042509408,7.0389,142.07,142.01,39.6711]
[1727042509607,7.0389,142.07,142.01,38.9816]
[1727042509823,50.0,142.1,142.03,7.0403]
[1727042510021,50.0,142.1,142.01,38.9816]
[1727042510022,7.0389,142.07,142.01,46.023]
[1727042510328,7.0382,142.09,142.02,7.0412]
[1727042510505,7.0388,142.07,142.01,38.9816]
[1727042510908,7.0381,142.09,142.02,7.0411]
[1727042511712,21.06523729,142.14,142.06,37.73994373]
[1727042511713,11.6019004,142.14,142.06,37.73994373]
[1727042511915,50.0,142.18,142.09,7.0377]
[1727042512429,50.0,142.14,142.04,23.776884]
[1727042512643,50.0,142.14,142.08,7.0382]
[1727042513424,7.0358,142.13,142.07,7.0387]
[1727042515409,50.0,142.14,142.06,17.5978]
[1727042515736,7.0392,142.06,141.92,35.2298]
[1727042515913,7.0397,142.06,141.98,18.0447309]
[1727042516108,7.0404,142.04,141.98,18.0447309]
[1727042516313,7.0396,142.06,141.99,7.0427]
[1727042516510,7.0396,142.06,142.0,60.6171639]
[1727042516731,7.0382,142.08,142.01,38.9819]
[1727042517031,0.12549,142.11,142.01,38.9819]
[1727042517217,7.0377,142.1,142.04,7.0397]
[1727042517414,7.0379,142.09,142.04,7.0397]
[1727042517656,7.0379,142.09,142.03,7.0407]
[1727042518310,7.0383,142.08,142.02,23.776884]
[1727042519312,7.0383,142.08,142.02,30.818084]
[1727042519829,7.0383,142.08,142.03,7.0405]
[1727042520049,7.0378,142.09,142.03,7.0405]
[1727042520331,7.0373,142.1,142.04,23.776884]
[1727042520542,7.0366,142.12,142.06,23.776884]
[1727042521427,7.0368,142.11,142.06,23.776884]
[1727042521734,61.37080886,142.14,142.01,21.378]
[1727042521735,7.0402,142.05,142.01,21.378]
[1727042521919,7.70870772,142.13,142.01,21.378]
[1727042521920,50.0,142.07,142.01,21.378]
[1727042522123,7.70870772,142.13,142.0,53.5750639]
[1727042522124,7.0417,142.01,142.0,53.5750639]
[1727042523426,57.29268,142.01,142.0,53.5750639]
[1727042524023,4.81742042,142.05,142.0,53.5750639]
[1727042524229,0.12549,142.07,142.0,53.5750639]
[1727042524446,7.0393,142.06,142.0,53.5750639]
[1727042524737,0.12549,142.04,142.0,53.5750639]
[1727042524940,7.0415,142.02,142.0,53.5750639]
[1727042525322,0.12549,142.01,142.0,53.5750639]
[1727042525642,50.25098,142.01,142.0,53.5750639]
[1727042525814,0.12549,142.01,142.0,53.5750639]
[1727042526431,7.0415,142.02,142.0,53.5750639]
[1727042527017,50.25098,142.01,142.0,53.5750639]
[1727042527212,70.25098,142.01,142.0,42.13991797]
[1727042528217,57.0407,142.03,142.0,42.13991797]
[1727042528413,50.0,142.03,142.0,42.13991797]
[1727042528645,7.0412,142.02,142.0,42.13991797]
[1727042529140,70.0,142.01,142.0,42.13991797]
[1727042529321,77.0417,142.01,142.0,42.13991797]
[1727042529523,57.29268,142.01,142.0,42.13991797]
[1727042529731,77.29268,142.01,142.0,42.13991797]
[1727042530136,77.29268,142.01,142.0,27.72361797]
[1727042530333,77.29268,142.01,142.0,17.87051797]
[1727042531340,77.29268,142.01,142.0,14.28731797]
[1727042531718,77.29268,142.01,142.0,10.13401797]
[1727042531924,57.16819,141.99,141.98,0.4373309]
[1727042532139,0.12549,141.99,141.98,0.4373309]
[1727042532335,7.041,142.03,141.98,0.4373309]
[1727042532542,50.0,142.04,141.98,0.4373309]
[1727042532720,50.0,142.04,141.98,7.4801309]
[1727042532721,7.0404,142.04,141.98,7.4801309]
[1727042532915,7.0412,142.02,141.99,6.4925]
[1727042533116,7.0418,142.01,141.99,6.4925]
[1727042533342,50.0,142.02,141.98,0.4373309]
[1727042533541,7.0427,141.99,141.98,0.4373309]